Cogmind - Beta 13 @@@ ROGUE MODE // 2024.04.01 @ 07:43:59 Player: Mr_box Result: Destroyed by Y-45 Defender with Beam Rifle Performance ------------- Evolutions (2) 1000 Regions Visited (3) 600 Robots Destroyed (85) 425 Value Destroyed (2094) 2094 Prototype IDs (2) 40 Alien Tech Used (0) 0 Bonus (64) 64 TOTAL SCORE: 4223 Bonus ------- High Alert Combat Kills 64 Cogmind --------- Core Integrity 0/550 Matter 237/300 Energy 99/100 System Corruption 0% Temperature Cool (9) Movement Core (350) Ox6 Location -8/Materials Parts ------- > --- POWER (1) -------- (None) > --- PROPULSION (3) --- (None) > --- UTILITY (5) ------ Large Storage Unit Transport Network Coupler Advanced Targeting Computer > --- WEAPON (2) ------- (None) > --- INVENTORY (15) --- Improved Ion Engine Heat Sink Heat Sink Improved Heat Sink Recoil Stabilizer Particle Gun EM Pulse Cannon Beam Cannon Peak State ------------ > --- POWER ------------ Deuterium Engine > --- PROPULSION ------- Light Treads Light Treads Light Treads > --- UTILITY ---------- Heat Sink Improved Heat Sink Large Storage Unit Transport Network Coupler Hacking Suite > --- WEAPON ----------- Improved Assault Rifle Gauss Rifle > --- INVENTORY -------- Improved Ion Engine Improved Ion Engine Deuterium Engine Light Treads Heat Sink Targeting Computer Recoil Stabilizer Utility Shielding Utility Shielding Particle Gun EM Pulse Cannon Beam Cannon Assault Rifle Shotgun Improved Light Cannon [Rating: 24] Favorites ----------- Power Heavy Ion Engine Engine Heavy Ion Engine Propulsion Light Treads Treads Light Treads Utility Transport Network Coupler Device Heat Sink Storage Large Storage Unit Processor Transport Network Coupler Hackware Hacking Suite Protection Medium Armor Plating Weapon Improved Assault Rifle Energy Gun Medium Laser Energy Cannon Beam Cannon Ballistic Gun Improved Assault Rifle Ballistic Cannon Improved Light Cannon Build | -11 -10 -9 -8 ------- Run | Yrd Mat Mat Mat Slots Evolved 4 | . . 2 2 Power . | . . . . Propulsion 1 | . . . 1 Utility 3 | . . 2 1 Weapon . | . . . . Parts Attached 63 | 6 8 19 30 Power 7 | 1 1 2 3 Engine 7 | 1 1 2 3 Core . | . . . . Reactor . | . . . . Propulsion 16 | 2 2 5 7 Treads 16 | 2 2 5 7 Leg . | . . . . Wheel . | . . . . Hover . | . . . . Flight . | . . . . Utility 21 | 1 3 7 10 Device 5 | . 1 1 3 Storage 4 | 1 1 1 1 Processor 4 | . 1 1 2 Hackware 1 | . . . 1 Protection 7 | . . 4 3 Artifact . | . . . . Weapon 19 | 2 2 5 10 Energy Gun 1 | 1 . . . Energy Cannon 2 | . 1 . 1 Ballistic Gun 14 | 1 1 4 8 Ballistic Cannon 2 | . . 1 1 Launcher . | . . . . Special Weapon . | . . . . Impact Weapon . | . . . . Slashing Weapon . | . . . . Piercing Weapon . | . . . . Special Melee Weapon . | . . . . Unidentified Prototypes 2 | . . 2 . Parts Lost 24 | . . . 24 Power 3 | . . . 3 Propulsion 9 | . . . 9 Utility 6 | . . . 6 Weapon 6 | . . . 6 Highest Loss Streak 10 | . . . 10 To Critical Strikes . | . . . . Average Slot Usage (%) 95 | . 96 99 92 Engine 10 | . 14 11 8 Treads 24 | . 28 22 24 Device 9 | . 2 11 12 Storage 10 | . 14 11 9 Processor 11 | . 9 11 12 Protection 6 | . . 10 7 Energy Gun 1 | . 4 . . Energy Cannon 3 | . 9 2 . Ballistic Gun 13 | . 13 14 12 Ballistic Cannon 3 | . . 5 4 Naked Turns . | . . . . Heaviest Build 50 | 14 20 43 50 Greatest Support 60 | 40 40 40 60 Greatest Overweight (x) 10 | 2 . 1 10 Average Overweight (x) . | . . . . Largest Inventory Capacity 15 | 8 10 15 15 Average Capacity 12 | 6 9 13 15 Most Carried 15 | 5 10 15 15 Average Carried 11 | 3 8 12 12 Final Capacity 15 | 8 10 15 15 Final Carried 15 | 4 10 15 8 Class Distribution -------------------- 69% | Mutant 30% | Scavenger-Mutant Dominant Class ---------------- Mutant | -10/Materials Mutant | -9/Materials Mutant | -8/Materials Resources | -11 -10 -9 -8 ----------- Run | Yrd Mat Mat Mat Matter Collected 1959 | 214 333 473 939 Remotely . | . . . . Salvage Created 3203 | . 870 1007 1326 Parts 176 | . 54 51 71 Haulers Intercepted 9 | . 2 4 3 Recyclers Shooed 6 | . 1 4 1 Parts Field Recycled . | . . . . Retrieved Matter . | . . . . Parts Self-Destructed . | . . . . Prevented . | . . . . Kills | -11 -10 -9 -8 ------- Run | Yrd Mat Mat Mat Combat Hostiles Destroyed 54 | . 14 12 28 Guns 29 | . 8 3 18 Cannons 23 | . 6 9 8 AOE 2 | . . . 2 Classes Destroyed 12 | . 6 3 3 Worker 4 | . 1 1 2 Hauler 9 | . 2 4 3 Recycler 11 | . 3 4 4 Watcher 7 | . 2 2 3 Swarmer 15 | . 3 . 12 Grunt 26 | . 11 5 10 Brawler 2 | . . 1 1 Duelist 1 | . . 1 . Sentry 7 | . . 5 2 Specialist 1 | . . . 1 Hunter 1 | . . . 1 Heavy 1 | . . . 1 Best Kill Streak 6 | . 5 4 6 Combat Bots Only 6 | . 3 2 6 Max Kills in Single Turn 3 | . 1 2 3 Gunslinging . | . . . . Exploded 1 | . . . 1 Melee . | . . . . Uniques/NPCs Destroyed . | . . . . Combat | -11 -10 -9 -8 -------- Run | Yrd Mat Mat Mat Hostile Shots Fired 452 | . 74 45 333 Missed 125 | . 22 16 87 Damage Taken 4455 | . 600 422 3433 Core 730 | . 106 61 563 Absorbed by Shields 229 | . . . 229 Redirected to Shielding 2 | . . . 2 Regen/Repaired (Parts) 140 | . 140 . . Core Remaining (%) 80 | 100 57 84 . Volleys Fired 249 | . 71 66 112 Largest 2 | . 2 2 2 Hottest 86 | . 80 80 86 Shots Fired 497 | . 142 132 223 Gun 342 | . 111 70 161 Cannon 155 | . 31 62 62 Launcher . | . . . . Special . | . . . . Kinetic 387 | . 71 105 211 Thermal 98 | . 71 27 . Explosive . | . . . . Electromagnetic 12 | . . . 12 Robot Hit Streak 18 | . 16 13 18 Robot Miss Streak 8 | . 8 5 6 Penetration Max 1 | . . . 1 Secondary Targets 4 | . . . 4 Max Gunslinging Chain 1 | . . . 1 Shots Hit Robots 317 | . 84 80 153 Core Hits 136 | . 38 32 66 Critical Kills 2 | . . . 2 Critical Parts Destroyed 2 | . 1 . 1 Critical Strikes 8 | . 3 1 4 Burn 2 | . 2 . . Destroy 5 | . 1 . 4 Blast 1 | . . 1 . Melee Attacks . | . . . . Impact . | . . . . Slashing . | . . . . Piercing . | . . . . Sneak Attacks . | . . . . Combat Hostiles . | . . . . Follow-up Attacks . | . . . . Damage Inflicted 6154 | . 1236 1417 3501 Guns 3305 | . 874 622 1809 Cannons 2025 | . 353 795 877 Explosions 815 | . . . 815 Melee . | . . . . Ramming 9 | . 9 . . Kinetic 4236 | . 552 1189 2495 Thermal 1225 | . 675 228 322 Explosive 493 | . . . 493 Electromagnetic 191 | . . . 191 Impact . | . . . . Slashing . | . . . . Piercing . | . . . . Highest Corruption . | . . . . Average Corruption . | . . . . Corruption Purged . | . . . . Corruption Blocked . | . . . . Overload Shots . | . . . . Overflow Damage 144 | . 3 3 138 Projectiles 16 | . 3 3 10 Explosions 128 | . . . 128 Melee . | . . . . Knockbacks 6 | . . 4 2 Impact . | . . . . Kinetic 6 | . . 4 2 Secondary . | . . . . Self-Inflicted Damage 224 | . . . 224 Shots 4 | . . . 4 Rammed 1 | . 1 . . Targets Rammed 1 | . 1 . . Kicked . | . . . . Crushed . | . . . . Highest Temperature 111 | . 111 6 90 Average Temperature 32 | . 37 3 26 Received Heat Transfer 1544 | . 297 114 1133 Siege Activations . | . . . . Robots Corrupted . | . . . . Combat Hostiles . | . . . . Parts Fried . | . . . . Impact Corruptions . | . . . . Robots Melted . | . . . . Combat Hostiles . | . . . . Parts Melted 4 | . 4 . . Heat Transferred 2581 | . 1850 481 250 Parts Sabotaged . | . . . . Parts Stolen . | . . . . Parts Stripped . | . . . . Power Chain Reactions 2 | . . . 2 Alert | -11 -10 -9 -8 ------- Run | Yrd Mat Mat Mat Peak Influence 541 | . 234 319 541 Initial 85 | . . 50 85 Average 202 | . 90 189 291 Maximum Alert Level 2 | . 1 1 2 Low Security (%) 53 | 100 91 55 26 Level 1 39 | . 8 44 57 Level 2 6 | . . . 15 Level 3 . | . . . . Level 4 . | . . . . Level 5 . | . . . . High Security . | . . . . Max Security . | . . . . Squads Dispatched 10 | . 4 . 6 Investigation 4 | . 3 . 1 Extermination . | . . . . Reinforcement 5 | . 1 . 4 Assault . | . . . . Garrison 1 | . . . 1 Intercept . | . . . . Searches Triggered . | . . . . Construction Impeded 1 | . . . 1 Haulers Reinforced . | . . . . Active Scanning Responses . | . . . . Cargo Convoy Interrupts . | . . . . Stealth | -11 -10 -9 -8 --------- Run | Yrd Mat Mat Mat Distress Signals 5 | . . 3 2 Communications Jammed . | . . . . Distress Signals . | . . . . Times Spotted 91 | . 21 22 48 Peak Tracking Total 8 | . 4 3 8 Tactical Retreats 3 | . . . 3 Traps | -11 -10 -9 -8 ------- Run | Yrd Mat Mat Mat Traps Triggered 2 | . 2 . . Indirectly . | . . . . Trap Hack Attempts . | . . . . Triggered . | . . . . Disarmed . | . . . . Reprogrammed . | . . . . Reused . | . . . . Traps Extracted . | . . . . Installed . | . . . . Triggered . | . . . . Machines | -11 -10 -9 -8 ---------- Run | Yrd Mat Mat Mat Machines Disabled 7 | . . . 7 Max in Single Turn 2 | . . . 2 Machines Repaired . | . . . . Machines Dismantled . | . . . . Machines Sabotaged . | . . . . Overloaded Fab Kills . | . . . . Hacking | -11 -10 -9 -8 --------- Run | Yrd Mat Mat Mat Machines Accessed 7 | . 3 1 3 Terminals 5 | . 2 1 2 Fabricators . | . . . . Repair Stations 1 | . 1 . . Recycling Units . | . . . . Scanalyzers 1 | . . . 1 Garrison Access . | . . . . Total Hacks 22 | . 12 2 8 Successful 13 | . 7 2 4 Failed 9 | . 5 . 4 Catastrophic 3 | . . . 3 Database Lockouts . | . . . . Manual . | . . . . Terminals 13 | . 6 2 5 Fabricators . | . . . . Repair Stations 6 | . 6 . . Recycling Units . | . . . . Scanalyzers 3 | . . . 3 Garrison Access . | . . . . Terminal Hacks 6 | . 3 2 1 Terminal Index 1 | . 1 . . Alert Level 2 | . . 1 1 Dispatch Records 1 | . 1 . . Zone Layout 2 | . 1 1 . Fabricator Hacks . | . . . . Repair Station Hacks 4 | . 4 . . Scan Component 2 | . 2 . . Repair 2 | . 2 . . Recycling Unit Hacks . | . . . . Scanalyzer 3 | . . . 3 Insert Component 2 | . . . 2 Analyze 1 | . . . 1 Garrison Access Hacks . | . . . . Unauthorized Hacks . | . . . . Terminals . | . . . . Fabricators . | . . . . Repair Stations . | . . . . Recycling Units . | . . . . Scanalyzers . | . . . . Garrison Access . | . . . . Data Cores Recovered . | . . . . Used . | . . . . Hacking Detections 5 | . 3 . 2 Full Trace Events 2 | . 1 . 1 Feedback Events . | . . . . Feedback Blocked . | . . . . Robot Schematics Acquired . | . . . . Robots Built . | . . . . Authchips . | . . . . Time . | . . . . Total Robot Build Rating . | . . . . Part Schematics Acquired 1 | . . . 1 Parts Built . | . . . . Authchips . | . . . . Time . | . . . . Total Part Build Rating . | . . . . Parts Repaired 2 | . 2 . . Time 52 | . 52 . . Parts Recycled . | . . . . Recycled Matter . | . . . . Retrieved Matter . | . . . . Retrieved Components . | . . . . Parts Scanalyzed 1 | . . . 1 Part Schematics Acquired 1 | . . . 1 Parts Damaged . | . . . . Bothacking | -11 -10 -9 -8 ------------ Run | Yrd Mat Mat Mat Used RIF Installer . | . . . . Robots Hacked . | . . . . Non-combat . | . . . . Combat . | . . . . Robot Hacks Applied . | . . . . Relay Couplers Released . | . . . . Fabnet Peak Effective % . | . . . . Robots Rewired . | . . . . Allies Hacked . | . . . . Hacks Repelled . | . . . . Allies | -11 -10 -9 -8 -------- Run | Yrd Mat Mat Mat Total Allies . | . . . . Largest Group . | . . . . Highest-Rated Group . | . . . . Highest-Rated Ally . | . . . . Total Orders . | . . . . Ally Attacks . | . . . . Total Damage . | . . . . Kills . | . . . . Allies Corrupted . | . . . . Allies Melted . | . . . . Intel | -11 -10 -9 -8 ------- Run | Yrd Mat Mat Mat Robot Analysis Total . | . . . . Derelict Logs Recovered . | . . . . Drone Launches . | . . . . Drone Recoveries . | . . . . Exploration | -11 -10 -9 -8 ------------- Run | Yrd Mat Mat Mat Turns Passed 3782 | 59 1040 1077 1606 Spaces Moved 1685 | 40 497 452 696 Core 25 | 19 . . 6 Treads 1660 | 21 497 452 690 Legs . | . . . . Wheels . | . . . . Hover . | . . . . Flight . | . . . . Fastest Speed 50 | 50 160 160 160 Average Speed 171 | 112 160 185 175 Slowest Speed 550 | 160 160 240 550 Overloaded Moves . | . . . . Propulsion Burnouts . | . . . . Robots Hopped . | . . . . Cave-ins Triggered . | . . . . Exploration Rate (%) 38 | 4 69 37 43 Regions Visited 3 Branch Regions . Pre-discovered Areas . | . . . . Known Exits Taken . | . . . . Unknown Exits Taken 3 | 1 1 1 . Scrap Searched . | . . . . Spaces Dug . | . . . . Terrain Destroyed 123 | . . . 123 Melee . | . . . . Projectile . | . . . . AOE 123 | . . . 123 Terrain Rammed . | . . . . Walls Destroyed . | . . . . Machines Disabled . | . . . . Actions | -11 -10 -9 -8 --------- Run | Yrd Mat Mat Mat Total 2079 | 53 601 564 861 Wait 2 | . 1 . 1 Move 1682 | 39 496 451 696 Hop . | . . . . Pick Up 51 | 8 14 13 16 Fast Attach 7 | 2 3 2 . Attach 27 | 4 1 3 19 Detach 2 | . 1 . 1 Swap 29 | . 4 14 11 Drop 29 | . 9 15 5 Fire 249 | . 71 66 112 Melee . | . . . . Ram . | . . . . Kick . | . . . . Crush 1 | . 1 . . Escape Stasis . | . . . . Rewire . | . . . . Trap . | . . . . Miscellaneous . | . . . . Route ------- -11/Scrapyard -10/Materials (discovered 3 exits: *Mat x2 / [*Min]) -9/Materials -8/Materials History --------- Turn | Location | Event 6 | -11/Scrapyard | Discovered new exit (range 16) 60 | -11/Scrapyard | Entered Materials 306 | -10/Materials | Build established: Mutant 360 | -10/Materials | Discovered new exit (range 11) 491 | -10/Materials | Repaired Assault Rifle 531 | -10/Materials | Repaired Lgt. Treads 673 | -10/Materials | Discovered new exit (range 14) 1076 | -10/Materials | Discovered new exit (range 6) 1100 | -10/Materials | Entered another Materials area 1100 | -9/Materials | Evolved 2 slots: Utility x2 1478 | -9/Materials | Discovered new exit (range 16) 1579 | -9/Materials | Build established: Scavenger-Mutant 2092 | -9/Materials | Build established: Mutant 2177 | -9/Materials | Entered another Materials area 2177 | -8/Materials | Evolved 2 slots: Propulsion x1, Utility x1 2891 | -8/Materials | Lost 3 parts (2n1u) 3381 | -8/Materials | Build established: Scavenger-Mutant 3672 | -8/Materials | Core integrity fell below 50% 3724 | -8/Materials | Garrison activated, responded to threat 3779 | -8/Materials | Core integrity fell below 20% 3783 | -8/Materials | Destroyed by Y-45 Defender with Beam Rifle Last Messages --------------- Imp. Ion Engine destroyed. U-05 Engineer lays Concrete. U-05 Engineer builds a Wall. U-05 Engineer builds a Door. U-05 Engineer builds a Wall. K-01 Serf collects debris. U-05 Engineer lays Concrete. K-01 Serf collects debris. U-05 Engineer lays Concrete. M-13 Machinist repairs Y-45 Defender. U-05 Engineer builds a Wall. K-01 Serf collects debris. U-05 Engineer builds a Wall. U-05 Engineer lays Concrete. K-01 Serf collects debris. U-05 Engineer builds a Wall. U-05 Engineer lays Concrete. K-01 Serf collects debris. U-05 Engineer lays Concrete. [Achievement: First Step to Greatness] Map ----- +----------------------------------------------------+ | "" =! !#?# #### /# """ """ # | | == %a T #?# ######+############# | | = % #?# # #????????# | | ###############+### #?# # """"" #????????# | | ########## ^ ## % ##?# %# ""T"" #????????# | | ## = ## #### # #????????# | | " ## !!= ## %# """ """ #????????? | | "## !== ## # """ """ #????????? | | ! ## !=! ## # """ """ #????????? | | ## ## * !!! #? #????????# | | = ## ##*/ !!! %#####+########??### | | [ ## ##* !% + ! #### | | ############ % # # # | | #??????????# # """!#! # | | ###??????????####+### #### # """%+= [+ | | # ###???????????# T # #??# # """ # # | | ######?????????????# # #??# # # # | | ???????????????????# """# #??# / "" ## | | ???????????????????# """# #??# # """ ## | | ???????????????????# """# #??# # S" ## # | | ???????????????????# + #### # """ ## # | | ???????????????????####;;;;; ;; ## # """ ## ## | | ?????????????????????##;;;;;; ;# # ## #? | | ?????????????????????# ; ; #"###### #? | | ??????????????????????#; k# # #? | | ?????????????????????##; @k !#= # #? | | ?????????????????????# ; ku [#% #% % #? | | ?????????????????????# ; %+| # ########? | | ?????????????????????##; YY u #"""#% #???????? | | ??????????????????????#;Y m # ## #???????? | | ??????????????????????## u u ; ### ##??????? | | ?????????????????????#######/######## #??????? | | ?????????????? ]]%]][%!!=% % ! ! #??????? | | ?????????????????????######% ! #??????? | | ??????????????????????????# % #??????? | | ??????????????????????????# ####### % #??????? | | ??????????????????????????# #?????#######??????? | | ??????????????????????????# #??????????????????? | | ??????????????????????????# % #??????????????????? | | ??????????????????????????# ??????????????????? | | ??????????????????????????" ??????????????????? | | ??????????????????????????# % ??????????????????a | | ??????????????????????????## ###?????????????????? | | ???????????????????????????# ????????????????????? | | ???????????????????????????# ????????????????????? | | ???????????????????????????# ????????????????????? | | ???????????????????????????#+????????????????????? | | ?????????????????????????????????????????????????? | | ?????????????????????????????????????????????????? | | ?????????????????????????????????????????????????? | +----------------------------------------------------+ Best States ------------- Heat Dissipation 55 Energy Generation 14 Energy Capacity 280 Matter Stores 300 Matter Capacity 300 Sight Range 16 Terrain Scan Density 10 Armor Coverage 600 Utility Shielding 33 Evasion (%) 50 Targeting Accuracy 13 Recoil Reduction 7 Item Schematics ----------------- Hvy. Armor Plating | -8/Materials | Scanalyzed Robot Schematics ------------------ None Fabricated ------------ Nothing Alien Tech Used ----------------- None Achievements -------------- First Step to Greatness Challenges ------------ None Game ------ Seed ClaymoresAutogunClaymores Manual? 0 Play Time 00:56:01 Cumulative 4.5 hours Start 2024.04.01 @ 06:49:51 End 2024.04.01 @ 07:43:59 Sessions 1 Manual Loads 0 Difficulty Rogue Special Mode None Game No. 4 Rogue 4 Adventurer 0 Explorer 0 Win Type - Total 0 Types 0/0/0/0/0/0/0/0/0 Lore% 3 Gallery% 8 Achievement% 6 Wizard Run 0 Options --------- Layout 1 ASCII 0 Keyboard 0 Movement Mouse Keybinds 0 Fullscreen 1 Font 24/Smallcaps Map View 50x35 Zoom Use 0% Tactical HUD 0 Map Filters NONE Filters NONE Steam 1 RUN: 299eb04c-9114-47c8-99b4-0870f0a801c4